Cogmind - Beta 13 @@@ ROGUE MODE // 2024.04.07 @ 23:12:25 Player: Olafz Result: Destroyed by Y-45 Defender with Beam Rifle Performance ------------- Evolutions (1) 500 Regions Visited (2) 400 Robots Destroyed (16) 80 Value Destroyed (274) 274 Prototype IDs (4) 80 Alien Tech Used (0) 0 Bonus (0) 0 TOTAL SCORE: 1334 Bonus ------- None Cogmind --------- Core Integrity 0/400 Matter 91/300 Energy 100/100 System Corruption 0% Temperature Cool (9) Movement Core (350) Ox6 Location -9/Materials Parts ------- > --- POWER (1) -------- (None) > --- PROPULSION (2) --- (None) > --- UTILITY (4) ------ Large Storage Unit Structural Scanner Signal Interpreter Hacking Suite > --- WEAPON (2) ------- (None) > --- INVENTORY (15) --- Small Storage Unit Medium Storage Unit Grenade Launcher Peak State ------------ > --- POWER ------------ Ion Engine > --- PROPULSION ------- Light Treads Light Treads > --- UTILITY ---------- Small Storage Unit Medium Storage Unit Hacking Suite > --- WEAPON ----------- Assault Rifle Heavy Assault Rifle > --- INVENTORY -------- Light Ion Engine Light Ion Engine Light Treads Structural Scanner Grenade Launcher [Rating: 11] Favorites ----------- Power Light Ion Engine Engine Light Ion Engine Propulsion Light Treads Treads Light Treads Utility Hacking Suite Device Structural Scanner Storage Small Storage Unit Processor Signal Interpreter Hackware Hacking Suite Weapon Assault Rifle Ballistic Gun Assault Rifle Build | -11 -10 -9 ------- Run | Yrd Mat Mat Slots Evolved 2 | . . 2 Power . | . . . Propulsion . | . . . Utility 2 | . . 2 Weapon . | . . . Parts Attached 20 | 5 6 9 Power 4 | 1 1 2 Engine 4 | 1 1 2 Core . | . . . Reactor . | . . . Propulsion 6 | 2 3 1 Treads 6 | 2 3 1 Leg . | . . . Wheel . | . . . Hover . | . . . Flight . | . . . Utility 6 | 1 1 4 Device 1 | . . 1 Storage 3 | 1 . 2 Processor 1 | . . 1 Hackware 1 | . 1 . Protection . | . . . Artifact . | . . . Weapon 4 | 1 1 2 Energy Gun . | . . . Energy Cannon . | . . . Ballistic Gun 4 | 1 1 2 Ballistic Cannon . | . . . Launcher . | . . . Special Weapon . | . . . Impact Weapon . | . . . Slashing Weapon . | . . . Piercing Weapon . | . . . Special Melee Weapon . | . . . Unidentified Prototypes . | . . . Parts Lost 8 | . . 8 Power 2 | . . 2 Propulsion 3 | . . 3 Utility . | . . . Weapon 3 | . . 3 Highest Loss Streak 4 | . . 4 To Critical Strikes . | . . . Average Slot Usage (%) 72 | . 75 70 Engine 11 | . 14 9 Treads 22 | . 26 19 Device 2 | . . 3 Storage 12 | . 14 11 Processor 1 | . . 2 Hackware 9 | . 7 11 Ballistic Gun 13 | . 12 13 Naked Turns . | . . . Heaviest Build 27 | 10 12 27 Greatest Support 40 | 40 40 40 Greatest Overweight (x) 7 | 1 3 7 Average Overweight (x) . | . . . Largest Inventory Capacity 15 | 8 8 15 Average Capacity 9 | 6 8 11 Most Carried 6 | 1 5 6 Average Carried 3 | . 2 4 Final Capacity 15 | 8 8 15 Final Carried 5 | 1 5 3 Class Distribution -------------------- 100% | Mutant Dominant Class ---------------- Mutant | -10/Materials Mutant | -9/Materials Resources | -11 -10 -9 ----------- Run | Yrd Mat Mat Matter Collected 392 | 173 90 129 Remotely . | . . . Salvage Created 434 | 89 193 152 Parts 41 | 10 13 18 Haulers Intercepted 1 | . 1 . Recyclers Shooed 5 | 1 2 2 Parts Field Recycled . | . . . Retrieved Matter . | . . . Parts Self-Destructed . | . . . Prevented . | . . . Kills | -11 -10 -9 ------- Run | Yrd Mat Mat Combat Hostiles Destroyed 10 | . 3 7 Melee 2 | . . 2 Guns 8 | . 3 5 Classes Destroyed 7 | 2 3 2 Tunneler 2 | 2 . . Hauler 1 | . 1 . Recycler 1 | 1 . . Operator 1 | . 1 . Watcher 1 | . . 1 Swarmer 5 | . . 5 Grunt 5 | . 3 2 Best Kill Streak 3 | 3 3 3 Combat Bots Only 3 | . 2 3 Max Kills in Single Turn 1 | 1 1 1 Gunslinging . | . . . Exploded . | . . . Melee 1 | . . 1 Uniques/NPCs Destroyed . | . . . Combat | -11 -10 -9 -------- Run | Yrd Mat Mat Hostile Shots Fired 174 | . 35 139 Missed 39 | . 5 34 Damage Taken 1383 | . 345 1038 Core 490 | . 87 403 Absorbed by Shields . | . . . Core Remaining (%) 82 | 100 65 . Volleys Fired 100 | 10 47 43 Largest 2 | 1 1 2 Hottest 43 | 20 20 43 Shots Fired 103 | 10 48 45 Gun 103 | 10 48 45 Cannon . | . . . Launcher . | . . . Special . | . . . Kinetic 103 | 10 48 45 Thermal . | . . . Explosive . | . . . Electromagnetic . | . . . Robot Hit Streak 7 | 2 7 5 Robot Miss Streak 5 | 1 4 5 Penetration Max . | . . . Secondary Targets . | . . . Shots Hit Robots 68 | 7 32 29 Core Hits 28 | 5 10 13 Critical Kills . | . . . Critical Parts Destroyed . | . . . Critical Strikes . | . . . Melee Attacks . | . . . Impact . | . . . Slashing . | . . . Piercing . | . . . Sneak Attacks . | . . . Combat Hostiles . | . . . Follow-up Attacks . | . . . Damage Inflicted 939 | 94 413 432 Guns 900 | 89 406 405 Cannons . | . . . Explosions . | . . . Melee . | . . . Ramming 39 | 5 7 27 Kinetic 900 | 89 406 405 Thermal . | . . . Explosive . | . . . Electromagnetic . | . . . Impact . | . . . Slashing . | . . . Piercing . | . . . Highest Corruption 1 | . 1 . Average Corruption 1 | . 1 . Corruption Purged . | . . . Corruption Blocked . | . . . Effects 3 | . 3 . Heat Flow Errors 1 | . 1 . Energy Discharges 1 | . 1 . Misfires 1 | . 1 . Overload Shots . | . . . Overflow Damage . | . . . Projectiles . | . . . Explosions . | . . . Melee . | . . . Knockbacks . | . . . Impact . | . . . Kinetic . | . . . Secondary . | . . . Self-Inflicted Damage . | . . . Shots . | . . . Rammed 13 | 2 1 10 Targets Rammed 14 | 2 1 11 Kicked . | . . . Crushed 1 | . . 1 Highest Temperature 114 | . 114 1 Average Temperature 40 | . 58 1 Received Heat Transfer 420 | . 180 240 Siege Activations . | . . . Robots Corrupted . | . . . Combat Hostiles . | . . . Parts Fried . | . . . Impact Corruptions . | . . . Robots Melted . | . . . Combat Hostiles . | . . . Parts Melted . | . . . Heat Transferred . | . . . Parts Sabotaged . | . . . Parts Stolen . | . . . Parts Stripped . | . . . Power Chain Reactions . | . . . Alert | -11 -10 -9 ------- Run | Yrd Mat Mat Peak Influence 219 | 15 108 219 Initial 45 | . 9 45 Average 66 | 2 50 91 Maximum Alert Level 1 | . . 1 Low Security (%) 98 | 100 100 97 Level 1 1 | . . 2 Level 2 . | . . . Level 3 . | . . . Level 4 . | . . . Level 5 . | . . . High Security . | . . . Max Security . | . . . Squads Dispatched 4 | . 3 1 Investigation 1 | . 1 . Extermination . | . . . Reinforcement 3 | . 2 1 Assault . | . . . Garrison . | . . . Intercept . | . . . Searches Triggered . | . . . Construction Impeded . | . . . Haulers Reinforced . | . . . Active Scanning Responses . | . . . Cargo Convoy Interrupts . | . . . Stealth | -11 -10 -9 --------- Run | Yrd Mat Mat Distress Signals 1 | . . 1 Communications Jammed . | . . . Distress Signals . | . . . Times Spotted 24 | . 6 18 Peak Tracking Total 7 | . 2 7 Tactical Retreats . | . . . Traps | -11 -10 -9 ------- Run | Yrd Mat Mat Traps Triggered 2 | . 2 . Indirectly . | . . . Trap Hack Attempts . | . . . Triggered . | . . . Disarmed . | . . . Reprogrammed . | . . . Reused . | . . . Traps Extracted . | . . . Installed . | . . . Triggered . | . . . Machines | -11 -10 -9 ---------- Run | Yrd Mat Mat Machines Disabled . | . . . Max in Single Turn . | . . . Machines Repaired . | . . . Machines Dismantled . | . . . Machines Sabotaged . | . . . Overloaded Fab Kills . | . . . Hacking | -11 -10 -9 --------- Run | Yrd Mat Mat Machines Accessed 4 | . 2 2 Terminals 4 | . 2 2 Fabricators . | . . . Repair Stations . | . . . Recycling Units . | . . . Scanalyzers . | . . . Garrison Access . | . . . Total Hacks 14 | . 7 7 Successful 8 | . 3 5 Failed 6 | . 4 2 Catastrophic 1 | . 1 . Database Lockouts . | . . . Manual 6 | . 4 2 Terminals 14 | . 7 7 Fabricators . | . . . Repair Stations . | . . . Recycling Units . | . . . Scanalyzers . | . . . Garrison Access . | . . . Terminal Hacks 8 | . 3 5 Prototype ID Bank 2 | . . 2 Branch Access Points 2 | . 1 1 Security Status 1 | . . 1 Patrol Status 1 | . . 1 Hauler Manifests 1 | . 1 . Zone Layout 1 | . 1 . Fabricator Hacks . | . . . Repair Station Hacks . | . . . Recycling Unit Hacks . | . . . Scanalyzer . | . . . Garrison Access Hacks . | . . . Unauthorized Hacks . | . . . Terminals . | . . . Fabricators . | . . . Repair Stations . | . . . Recycling Units . | . . . Scanalyzers . | . . . Garrison Access . | . . . Data Cores Recovered . | . . . Used . | . . . Hacking Detections 2 | . 2 . Full Trace Events 1 | . 1 . Feedback Events . | . . . Feedback Blocked . | . . . Robot Schematics Acquired . | . . . Robots Built . | . . . Authchips . | . . . Time . | . . . Total Robot Build Rating . | . . . Part Schematics Acquired . | . . . Parts Built . | . . . Authchips . | . . . Time . | . . . Total Part Build Rating . | . . . Parts Repaired . | . . . Time . | . . . Parts Recycled . | . . . Recycled Matter . | . . . Retrieved Matter . | . . . Retrieved Components . | . . . Parts Scanalyzed . | . . . Part Schematics Acquired . | . . . Parts Damaged . | . . . Bothacking | -11 -10 -9 ------------ Run | Yrd Mat Mat Used RIF Installer . | . . . Robots Hacked . | . . . Non-combat . | . . . Combat . | . . . Robot Hacks Applied . | . . . Relay Couplers Released . | . . . Fabnet Peak Effective % . | . . . Robots Rewired . | . . . Allies Hacked . | . . . Hacks Repelled . | . . . Allies | -11 -10 -9 -------- Run | Yrd Mat Mat Total Allies . | . . . Largest Group . | . . . Highest-Rated Group . | . . . Highest-Rated Ally . | . . . Total Orders . | . . . Ally Attacks . | . . . Total Damage . | . . . Kills . | . . . Allies Corrupted . | . . . Allies Melted . | . . . Intel | -11 -10 -9 ------- Run | Yrd Mat Mat Robot Analysis Total . | . . . Derelict Logs Recovered . | . . . Drone Launches . | . . . Drone Recoveries . | . . . Exploration | -11 -10 -9 ------------- Run | Yrd Mat Mat Turns Passed 1009 | 99 393 517 Spaces Moved 466 | 49 177 240 Core 28 | 13 11 4 Treads 438 | 36 166 236 Legs . | . . . Wheels . | . . . Hover . | . . . Flight . | . . . Fastest Speed 50 | 50 160 160 Average Speed 161 | 140 162 165 Slowest Speed 400 | 160 200 400 Overloaded Moves . | . . . Propulsion Burnouts . | . . . Robots Hopped . | . . . Cave-ins Triggered . | . . . Exploration Rate (%) 24 | 4 37 33 Regions Visited 2 Branch Regions . Pre-discovered Areas . | . . . Known Exits Taken . | . . . Unknown Exits Taken 2 | 1 1 . Scrap Searched . | . . . Spaces Dug . | . . . Terrain Destroyed . | . . . Melee . | . . . Projectile . | . . . AOE . | . . . Terrain Rammed . | . . . Walls Destroyed . | . . . Machines Disabled . | . . . Actions | -11 -10 -9 --------- Run | Yrd Mat Mat Total 605 | 66 232 307 Wait 1 | . . 1 Move 465 | 49 176 240 Hop . | . . . Pick Up 3 | 1 2 . Fast Attach 14 | 5 4 5 Attach 3 | . . 3 Detach 2 | . . 2 Swap 3 | . 2 1 Drop 1 | . . 1 Fire 100 | 10 47 43 Melee . | . . . Ram 3 | . . 3 Kick . | . . . Crush 10 | 1 1 8 Escape Stasis . | . . . Rewire . | . . . Trap . | . . . Miscellaneous . | . . . Route ------- -11/Scrapyard -10/Materials (discovered 2 exits: *Mat / Min) -9/Materials (discovered 2 exits: Min x2) History --------- Turn | Location | Event 9 | -11/Scrapyard | Discovered new exit (range 16) 100 | -11/Scrapyard | Entered Materials 148 | -10/Materials | Discovered new exit (range 15) 308 | -10/Materials | Build established: Mutant 361 | -10/Materials | Discovered new exit (range 16) 421 | -10/Materials | Identified exit to Mines 493 | -10/Materials | Entered another Materials area 493 | -9/Materials | Evolved 2 slots: Utility x2 666 | -9/Materials | Identified exit to Mines 733 | -9/Materials | Lost 3 parts (1p1n1w) 974 | -9/Materials | Core integrity fell below 50% 993 | -9/Materials | Core integrity fell below 20% 995 | -9/Materials | Lost 4 parts (1p2n1w) 1010 | -9/Materials | Destroyed by Y-45 Defender with Beam Rifle Last Messages --------------- 00945_ Critical hit (Burn: +37). 00956_ Lgt. Treads destroyed. 00958_ T-07 Excavator is excavating. 00963_ S-10 Pest destroyed. 00964_ Lgt. Treads destroyed. 00965_ R-06 Scavenger collects Flight Unit. 00966_ Acquired Lgt. Assault Rifle. 00967_ S-10 Pest destroyed. 00972_ R-06 Scavenger collects Flight Unit. 00974_ R-06 Scavenger collects Lgt. Ion Engine. 00975_ R-06 Scavenger collects Flight Unit. 00978_ Acquired 19 matter. 00979_ R-06 Scavenger collects Lgt. Assault Rifle. 00989_ Critical hit (Burn: +37). 00990_ Acquired 13 matter. 00998_ Lgt. Assault Rifle destroyed. 00999_ Acquired 12 matter. 01003_ Slammed into Y-45 Defender. 01006_ Destabilizing: Core damaged (-12). 01010_ Slammed into Y-45 Defender. Map ----- +----------------------------------------------------+ | ????????????????????????????????????? | | ????????????????????????????????????? | | ???????????>????????????????????????? | | ????????????????????????????????????? | | ????????????????????????????????????? | | ????????????????????????????????????? | | ????????????????????????????????????? | | ????????????????????????????????????? | | ????????????????????????????????????? | | ????????????????????????????????????? | | ???????????????## ????????????????? | | ???????????????## ??#####?????????? | | ???????????????## ??#####?????????? | | ??????????????### ## #?????????? | | ?????#####????### ## #?????????? | | ?????#####????## ### ##?????????? | | ????? ]]]#????## ?????????? | | ??????]]]?????## ? ??????????? | | ????? ##???## ? #???????? | | ####### ##???## ###+####???????? | | ####### ##???## #### ##???????? | | ##???## #### "##???????? | | ##???## #### T##???????? | | """ ##???## #### "##???????? | | "R T#???## + ##???????? | | """ ##???## ####Y@ ##???????? | | ####### #### ##???????? | | ########/##########???????? | | " + ######???????? | | "%" #### """""##???????????? | | ### #### """""##???????????? | | # #### """""##???????????? | | ? # """ = #### """""##???????????? | | ? # """ =#### """""##???????????? | | ? # """ #### """"??????????????? | | ? # """ #### """"??????????????? | | ? # """ #### ??????????????? | | ? # ############?????????????? | | ? # ############?????????????? | | ? # """ # ##?????????????? | | ?## """ # T ##?????????????? | | ### """ # ##?????????????? | | """ # ##?????????????? | | """ + """ """ ##?????????????? | | # """ """ ##?????????????? | | # """ """ ##?????????????? | | #### # ##?????????????? | | #### #####+######?????????????? | | #?## ##### ######?????????????? | | #?## ##?## #########??????????? | +----------------------------------------------------+ Best States ------------- Heat Dissipation 28 Energy Generation 10 Energy Capacity 250 Matter Stores 199 Matter Capacity 300 Sight Range 16 Terrain Scan Density 10 Evasion (%) 40 Recoil Reduction 2 Offensive Hacking 10 Item Schematics ----------------- None Robot Schematics ------------------ None Fabricated ------------ Nothing Alien Tech Used ----------------- None Achievements -------------- None Challenges ------------ None Game ------ Seed TransmissionHackingSpecial Manual? 0 Play Time 00:08:35 Cumulative 31.5 hours Start 2024.04.07 @ 23:03:46 End 2024.04.07 @ 23:12:25 Sessions 1 Manual Loads 0 Difficulty Rogue Special Mode None Game No. 83 Rogue 81 Adventurer 2 Explorer 0 Win Type - Total 0 Types 0/0/0/0/0/0/0/0/0 Lore% 24 Gallery% 32 Achievement% 24 Wizard Run 0 Options --------- Layout 0 ASCII 0 Keyboard 1 Movement Numpad Keybinds 0 Fullscreen 2 Font 18/SmallcapsGlow Map View 76x50 Zoom Use 0% Tactical HUD 1 Map Filters NONE Filters NONE Steam 1 RUN: 6edd668b-9e05-4a1d-a397-4330b90d5104